fUSD/lending_fUSD_20240425
["ID","MTS","AMOUNT","RATE_DAILY","PERIOD"]
[323467061,1714026632347,-150.0,0.00012756,2]
[323467062,1714026632357,-1816.19377,0.0001276,2]
[323467063,1714026632366,-150.0,0.00012761,2]
[323467064,1714026632377,-150.0,0.00012767,2]
[323467065,1714026632387,-150.0,0.00012776,2]
[323467066,1714026632397,-150.0,0.00012779,2]
[323467067,1714026632406,-150.0,0.00012782,2]
[323467068,1714026632417,-150.0,0.00012786,2]
[323467069,1714026632426,-150.0,0.00012797,2]
[323467070,1714026632436,-150.0,0.00012797,2]
[323467071,1714026632447,-150.0,0.00012798,2]
[323467072,1714026632456,-741.49506444,0.000128,2]
[323467073,1714026632466,-173.98228924,0.000128,2]
[323467074,1714026632476,-150.0,0.00012801,2]
[323467075,1714026632487,-150.0,0.00012801,2]
[323467076,1714026632496,-150.0,0.00012804,2]
[323467077,1714026632506,-150.0,0.00012808,2]
[323467078,1714026632515,-741.49506436,0.00012809,2]
[323467079,1714026632525,-150.0,0.00012813,2]
[323467080,1714026632534,-173.9822892,0.00012818,2]
[323467081,1714026632544,-741.49506436,0.00012818,2]
[323467082,1714026632554,-1000.0,0.00012826,2]
[323467083,1714026632566,-150.0,0.00012827,2]
[323467084,1714026632576,-741.49506436,0.00012827,2]
[323467085,1714026632587,-150.0,0.00012828,2]
[323467086,1714026632596,-173.9822892,0.00012835,2]
[323467087,1714026632606,-341.67091969,0.00012835,2]
[323467088,1714026632616,-741.49506436,0.00012836,2]
[323467089,1714026632626,-150.0,0.0001284,2]
[323467090,1714026632635,-150.0,0.00012843,2]
[323467091,1714026632645,-741.49506436,0.00012845,2]
[323467092,1714026632655,-173.9822892,0.00012853,2]
[323467093,1714026632664,-150.0,0.00012853,2]
[323467094,1714026632675,-741.49506436,0.00012855,2]
[323467095,1714026632684,-741.49506436,0.00012864,2]
[323467096,1714026632694,-1500.0,0.00012864,2]
[323467097,1714026632703,-150.0,0.00012865,2]
[323467098,1714026632713,-150.0,0.00012866,2]
[323467099,1714026632723,-150.0,0.0001287,2]
[323467100,1714026632733,-173.9822892,0.0001287,2]
[323467101,1714026632742,-10000.0,0.0001287,2]
[323467102,1714026632751,-150.0,0.00012872,2]
[323467103,1714026632760,-741.49506436,0.00012873,2]
[323467104,1714026632769,-170.66355813,0.00012873,2]
[323467105,1714026632779,-150.0,0.00012877,2]
[323467106,1714026632788,-1500.0,0.00012877,2]
[323467107,1714026632797,-150.0,0.00012878,2]
[323467108,1714026632806,-150.0,0.00012878,2]
[323467109,1714026632814,-1500.0,0.00012879,2]
[323467110,1714026632824,-741.49506436,0.00012882,2]
[323467111,1714026632835,-150.0,0.00012885,2]
[323467112,1714026632845,-741.49506436,0.00012891,2]
[323467113,1714026632855,-1000.0,0.00012893,2]
[323467114,1714026632866,-500.0,0.00012893,2]
[323467115,1714026632876,-1000.0,0.00012894,2]
[323467116,1714026632887,-1000.0,0.00012894,2]
[323467117,1714026632897,-500.0,0.00012894,2]
[323467118,1714026632907,-500.0,0.00012894,2]
[323467119,1714026632919,-150.0,0.00012897,2]
[323467120,1714026632929,-217.97797928,0.00012897,2]
[323467121,1714026632939,-524.93586593,0.00012899,2]
[323467122,1714026632950,-532.81334052,0.00012899,2]
[323467123,1714026632959,-500.0,0.00012899,2]
[323467124,1714026632969,-500.0,0.00012899,2]
[323467125,1714026632979,-500.0,0.00012899,2]
[323467126,1714026632989,-503.45927138,0.00012899,2]
[323467127,1714026633000,-500.0,0.00012899,2]
[323467128,1714026633010,-505.95347599,0.00012899,2]
[323467129,1714026633021,-501.10164045,0.00012899,2]
[323467130,1714026633031,-500.0,0.00012899,2]
[323467131,1714026633040,-1665.52,0.00012899,2]
[323467132,1714026633051,-217.21460128,0.00012899,2]
[323467133,1714026633061,-510.17309094,0.00012899,2]
[323467134,1714026633072,-500.0,0.00012899,2]
[323467135,1714026633083,-901.02,0.00012899,2]
[323467136,1714026633094,-632.20214802,0.00012899,2]
[323467137,1714026633103,-601.46326492,0.00012899,2]
[323467138,1714026633112,-500.0,0.00012899,2]
[323467139,1714026633121,-547.20477248,0.00012899,2]
[323467140,1714026633131,-500.0,0.00012899,2]
[323467141,1714026633142,-500.0,0.00012899,2]
[323467142,1714026633150,-528.6070293,0.00012899,2]
[323467143,1714026633161,-500.0,0.00012899,2]
[323467144,1714026633169,-500.0,0.00012899,2]
[323467145,1714026633178,-500.0,0.00012899,2]
[323467146,1714026633188,-500.0,0.00012899,2]
[323467147,1714026633197,-500.0,0.00012899,2]
[323467148,1714026633206,-500.0,0.00012899,2]
[323467149,1714026633215,-1726.67,0.00012899,2]
[323467150,1714026633224,-502.31439018,0.00012899,2]
[323467151,1714026633234,-500.0,0.00012899,2]
[323467152,1714026633244,-500.0,0.00012899,2]
[323467153,1714026633252,-500.0,0.00012899,2]
[323467154,1714026633262,-500.0,0.00012899,2]
[323467155,1714026633270,-500.0,0.00012899,2]
[323467156,1714026633279,-1315.32,0.00012899,2]
[323467157,1714026633293,-560.73,0.00012899,2]
[323467158,1714026633302,-500.0,0.00012899,2]
[323467159,1714026633311,-208.43,0.00012899,2]
[323467160,1714026633321,-500.0,0.00012899,2]
[323467161,1714026633331,-500.0,0.00012899,2]
[323467162,1714026633340,-500.0,0.00012899,2]
[323467163,1714026633349,-636.15,0.00012899,2]
[323467164,1714026633358,-500.0,0.00012899,2]
[323467165,1714026633368,-1041.16,0.00012899,2]
[323467166,1714026633377,-500.0,0.00012899,2]
[323467167,1714026633386,-500.0,0.00012899,2]
[323467168,1714026633395,-1785.12,0.00012899,2]
[323467169,1714026633405,-500.0,0.00012899,2]
[323467170,1714026633414,-584.89526877,0.00012899,2]
[323467171,1714026633423,-937.6,0.00012899,2]
[323467172,1714026633433,-500.0,0.00012899,2]
[323467173,1714026633442,-500.0,0.00012899,2]
[323467174,1714026633452,-2001.34,0.00012899,2]
[323467175,1714026633461,-500.0,0.00012899,2]
[323467176,1714026633471,-500.0,0.00012899,2]
[323467177,1714026633480,-2621.53,0.00012899,2]
[323467178,1714026633490,-500.0,0.00012899,2]
[323467179,1714026633499,-500.0,0.00012899,2]
[323467180,1714026633508,-1652.45,0.00012899,2]
[323467181,1714026633517,-509.97792824,0.00012899,2]
[323467182,1714026633526,-761.19,0.00012899,2]
[323467183,1714026633536,-500.0,0.00012899,2]
[323467184,1714026633545,-500.0,0.00012899,2]
[323467185,1714026633554,-9362.92,0.00012899,2]
[323467186,1714026633563,-922.67,0.00012899,2]
[323467187,1714026633572,-500.0,0.00012899,2]
[323467188,1714026633581,-672.47,0.00012899,2]
[323467189,1714026633590,-500.0,0.00012899,2]
[323467190,1714026633599,-400.22,0.00012899,2]
[323467191,1714026633608,-500.0,0.00012899,2]
[323467192,1714026633617,-500.0,0.00012899,2]
[323467193,1714026633626,-516.5504187,0.00012899,2]
[323467194,1714026633635,-401.92767936,0.00012899,2]
[323467195,1714026633644,-500.0,0.00012899,2]
[323467196,1714026633653,-500.0,0.00012899,2]
[323467197,1714026633662,-500.0,0.00012899,2]
[323467198,1714026633671,-500.0,0.00012899,2]
[323467199,1714026633680,-500.0,0.00012899,2]
[323467200,1714026633689,-500.0,0.00012899,2]
[323467201,1714026633699,-500.0,0.00012899,2]
[323467202,1714026633708,-450.54405501,0.00012899,2]
[323467203,1714026633717,-500.0,0.00012899,2]
[323467204,1714026633726,-507.40689972,0.00012899,2]
[323467205,1714026633735,-500.0,0.00012899,2]
[323467206,1714026633744,-500.0,0.00012899,2]
[323467207,1714026633753,-500.0,0.00012899,2]
[323467208,1714026633762,-40596.000531,0.000129,5]
[323467209,1714026633790,-537.59672522,0.00012899,2]
[323467210,1714026633799,-9858.62962008,0.000129,5]
[323467211,1714026633810,-1800.0,0.000129,5]
[323467212,1714026633884,361.34595815,0.0001,2]
[323467217,1714026638103,-500.0,0.00012899,2]
[323467218,1714026638112,-3646.45277639,0.000129,5]
[323467221,1714026639995,-500.0,0.00012899,2]
[323467222,1714026640005,-665.79185213,0.000129,5]
[323467223,1714026640027,-515.1,0.000129,5]
[323467224,1714026640363,-355.72425126,0.000129,5]
[323467225,1714026640376,-620.2599762,0.000129,5]
[323467226,1714026640387,-315.6,0.000129,5]
[323467227,1714026640399,-488.09289437,0.000129,5]
[323467228,1714026640410,-666.50811388,0.000129,5]
[323467230,1714026640422,-5053.75872295,0.000129,5]
[323467231,1714026640439,-316.55500001,0.000129,5]
[323467240,1714026642971,-500.0,0.00012899,2]
[323467241,1714026642980,-179.52128146,0.00012899,2]
[323467242,1714026643027,-320.47871854,0.00012899,2]
[323467243,1714026643037,-449.13993161,0.000129,5]
[323467244,1714026643050,-1381.05676272,0.000129,5]
[323467245,1714026643085,-353.21815342,0.00012898,2]
[323467246,1714026643096,-10820.52681283,0.000129,5]
[323467247,1714026643362,-337.85090234,0.00012899,2]
[323467248,1714026643372,-500.0,0.00012899,2]
[323467249,1714026643381,-2983.2103724,0.000129,5]
[323467251,1714026647014,-606.6,0.00012899,2]
[323467252,1714026647023,-367.27466341,0.00012899,2]
[323467253,1714026647032,-155.0,0.00012899,2]
[323467254,1714026647041,-40968.3532009,0.000129,5]
[323467255,1714026649499,298.81932009,0.0001,2]
[323467256,1714026652560,360.81882231,0.0001,2]
[323467257,1714026667508,298.81932009,0.0001,2]
[323467258,1714026683505,298.81932009,0.0001,2]
[323467259,1714026701578,279.88555108,0.0001,2]
[323467260,1714026717877,399.27306284,0.0001,2]
[323467261,1714026782374,384.98,0.00010007,2]
[323467268,1714027298892,391.42,9.962e-05,2]
[323467282,1714027832710,-200.0,0.00011727,2]
[323467283,1714027832720,-568.07,0.00011744,2]
[323467284,1714027832730,-1637.10595204,0.0001175,2]
[323467285,1714027832995,-500.15189257,0.0001175,2]
[323467286,1714027833004,-200.0,0.00011751,2]
[323467287,1714027833014,-775.97,0.00011759,2]
[323467288,1714027833023,-936.61,0.00011763,2]
[323467289,1714027833032,-163.76,0.00011878,2]
[323467290,1714027833042,-224.03,0.00011912,2]
[323467291,1714027833051,-150.0,0.00011918,2]
[323467292,1714027833060,-154.73,0.00011927,2]
[323467293,1714027833070,-162.67,0.00011932,2]
[323467294,1714027833080,-85.76509291,0.00011998,2]
[323467295,1714027833111,-414.23490709,0.00011998,2]
[323467296,1714027833120,-500.0,0.00011998,2]
[323467297,1714027833130,-500.0,0.00011998,2]
[323467298,1714027833140,-500.0,0.00011998,2]
[323467299,1714027833149,-500.0,0.00011998,2]
[323467300,1714027833159,-500.0,0.00011998,2]
[323467301,1714027833169,-500.0,0.00011998,2]
[323467302,1714027833178,-500.0,0.00011998,2]
[323467303,1714027833188,-510.51,0.00011998,2]
[323467304,1714027833197,-154.73,0.00012134,2]
[323467305,1714027833206,-391.42,0.00012226,2]
[323467306,1714027833215,-59.4546345,0.00012301,2]
[323467307,1714027833230,-443.5453655,0.00012301,2]
[323467308,1714027833240,-154.73,0.00012341,2]
[323467309,1714027833250,-594.06087357,0.000125,2]
[323467332,1714027840618,-503.0,0.00012328,2]
[323467333,1714027840628,-3506.64328,0.000125,2]
[323467334,1714027840640,-375.3676888,0.000125,2]
[323467335,1714027840652,-342.48,0.000125,2]
[323467352,1714027846768,-719.95798759,0.000125,2]
[323467353,1714027846826,-321.97,0.000125,2]
[323467354,1714027846991,-1441.68003764,0.000125,2]
[323467356,1714027847115,-197.42726102,0.000125,2]
[323467359,1714027847125,-154.73,0.00012549,2]
[323467361,1714027847134,-150.0,0.00012698,2]
[323467363,1714027847143,-150.0,0.00012727,2]
[323467365,1714027847152,-1500.0,0.00012732,2]
[323467367,1714027847162,-150.0,0.00012738,2]
[323467369,1714027847172,-109.28203604,0.00012763,2]
[323467371,1714027847184,-190.71796396,0.00012763,2]
[323467373,1714027847195,-150.0,0.00012768,2]
[323467375,1714027847204,-150.0,0.00012784,2]
[323467377,1714027847214,-150.0,0.00012794,2]
[323467379,1714027847224,-150.0,0.0001282,2]
[323467381,1714027847233,-185.37376609,0.00012824,2]
[323467383,1714027847243,-150.0,0.00012831,2]
[323467384,1714027847252,-150.0,0.00012837,2]
[323467385,1714027847261,-1067.46763947,0.00012843,2]
[323467386,1714027905081,370.29,0.0001003,2]
[323467387,1714027917130,2876.74873449,6.94e-05,2]
[323467592,1714028409010,351.77,0.0001,2]
[323467593,1714028843103,-706.66913894,0.00011894,2]
[323467594,1714028843124,-163.76,0.00011895,2]
[323467595,1714028843144,-620.78,0.00011911,2]
[323467596,1714028843165,-471.98,0.00011923,2]
[323467597,1714028843185,-379.22,0.00011943,2]
[323467598,1714028843207,-351.77,0.00012264,2]
[323467599,1714028843230,-150.0,0.00012666,2]
[323467600,1714028843250,-150.0,0.00012731,2]
[323467601,1714028843271,-284.85009614,0.00012739,2]
[323467602,1714028843293,-185.37376609,0.000128,2]
[323467603,1714028843314,-204.35085073,0.000128,2]
[323467604,1714028843336,-342.45569332,0.000128,2]
[323467605,1714028843357,-150.0,0.00012811,2]
[323467606,1714028843379,-432.53236053,0.00012843,2]
[323467607,1714028843399,-1513.49481,0.00012843,2]
[323467608,1714028843420,-185.37376609,0.0001285,2]
[323467609,1714028843440,-9581.6901,0.0001287,2]
[323467610,1714028843460,-1000.0,0.00012885,2]
[323467611,1714028843479,-1000.0,0.00012886,2]
[323467612,1714028843498,-500.0,0.00012886,2]
[323467613,1714028843516,-154.73172331,0.0001289,2]
[323467614,1714028843536,-157.042515,0.00012894,2]
[323467615,1714028843557,-157.042515,0.00012894,2]
[323467616,1714028843576,-157.042515,0.00012894,2]
[323467617,1714028843596,-157.042515,0.00012894,2]
[323467618,1714028843617,-157.042515,0.00012895,2]
[323467619,1714028843638,-157.042515,0.00012895,2]
[323467620,1714028843658,-157.042515,0.00012895,2]
[323467621,1714028843681,-157.042515,0.00012895,2]
[323467622,1714028843701,-157.042515,0.00012895,2]
[323467623,1714028843720,-157.042515,0.00012895,2]
[323467624,1714028843740,-157.042515,0.00012895,2]
[323467625,1714028843761,-157.042515,0.00012895,2]
[323467626,1714028843782,-157.042515,0.00012896,2]
[323467627,1714028843803,-157.042515,0.00012896,2]
[323467628,1714028843824,-157.042515,0.00012896,2]
[323467629,1714028843845,-157.042515,0.00012896,2]
[323467630,1714028843864,-157.042515,0.00012896,2]
[323467631,1714028843884,-157.042515,0.00012896,2]
[323467632,1714028843904,-157.042515,0.00012896,2]
[323467633,1714028843924,-157.042515,0.00012897,2]
[323467634,1714028843947,-157.042515,0.00012897,2]
[323467635,1714028843967,-157.042515,0.00012897,2]
[323467636,1714028843988,-157.042515,0.00012897,2]
[323467637,1714028844008,-157.042515,0.00012897,2]
[323467638,1714028844029,-157.042515,0.00012897,2]
[323467639,1714028844049,-157.042515,0.00012897,2]
[323467640,1714028844068,-173.042515,0.00012897,2]
[323467641,1714028844088,-155.22478226,0.00012898,2]
[323467642,1714028844108,-157.042515,0.00012898,2]
[323467643,1714028844128,-157.042515,0.00012898,2]
[323467644,1714028844148,-157.042515,0.00012898,2]
[323467645,1714028844169,-157.042515,0.00012898,2]
[323467646,1714028844189,-157.042515,0.00012898,2]
[323467647,1714028844209,-173.042515,0.00012898,2]
[323467648,1714028844228,-168.042515,0.00012898,2]
[323467649,1714028844247,-500.81687954,0.00012899,2]
[323467650,1714028844266,-200.0,0.00012899,10]
[323467651,1714028844285,-259.6893917,0.00012899,2]
[323467652,1714028844304,-500.0,0.00012899,2]
[323467653,1714028844322,-504.27596866,0.00012899,2]
[323467654,1714028844341,-500.0,0.00012899,2]
[323467655,1714028844359,-509.04328851,0.00012899,2]
[323467656,1714028844378,-500.0,0.00012899,2]
[323467657,1714028844397,-466.47388953,0.00012899,2]
[323467658,1714028844416,-500.0,0.00012899,2]
[323467659,1714028844435,-500.0,0.00012899,2]
[323467660,1714028844454,-500.0,0.00012899,2]
[323467661,1714028844473,-500.0,0.00012899,2]
[323467662,1714028844493,-500.0,0.00012899,2]
[323467663,1714028844512,-155.54187797,0.00012899,2]
[323467664,1714028844531,-500.0,0.00012899,2]
[323467665,1714028844550,-500.0,0.00012899,2]
[323467666,1714028844569,-492.68628111,0.00012899,2]
[323467667,1714028844588,-500.0,0.00012899,2]
[323467668,1714028844606,-500.0,0.00012899,2]
[323467669,1714028844626,-288.700923,0.00012899,2]
[323467670,1714028844645,-538.7878312,0.00012899,2]
[323467671,1714028844666,-898.54,0.00012899,2]
[323467672,1714028844685,-199.84722261,0.00012899,2]
[323467673,1714028844703,-473.74,0.00012899,2]
[323467674,1714028844722,-554.34,0.00012899,2]
[323467675,1714028844741,-500.0,0.00012899,2]
[323467676,1714028844761,-500.0,0.00012899,2]
[323467677,1714028844780,-500.0,0.00012899,2]
[323467678,1714028844799,-500.0,0.00012899,2]
[323467679,1714028844818,-500.0,0.00012899,2]
[323467680,1714028844838,-500.0,0.00012899,2]
[323467681,1714028844859,-569.81320775,0.00012899,2]
[323467682,1714028844879,-500.0,0.00012899,2]
[323467683,1714028844900,-500.0,0.00012899,2]
[323467684,1714028844925,-500.0,0.00012899,2]
[323467685,1714028844949,-500.0,0.00012899,2]
[323467686,1714028844969,-500.0,0.00012899,2]
[323467687,1714028844989,-500.0,0.00012899,2]
[323467688,1714028845008,-500.0,0.00012899,2]
[323467689,1714028845028,-500.0,0.00012899,2]
[323467690,1714028845047,-500.0,0.00012899,2]
[323467691,1714028845066,-521.33581393,0.00012899,2]
[323467692,1714028845085,-500.0,0.00012899,2]
[323467693,1714028845105,-524.66192676,0.00012899,2]
[323467694,1714028845123,-500.0,0.00012899,2]
[323467695,1714028845142,-500.0,0.00012899,2]
[323467696,1714028845164,-500.0,0.00012899,2]
[323467697,1714028845183,-348.90282332,0.00012899,2]
[323467698,1714028845201,-500.0,0.00012899,2]
[323467699,1714028845221,-500.0,0.00012899,2]
[323467700,1714028845239,-500.0,0.00012899,2]
[323467701,1714028845259,-581.53133256,0.00012899,2]
[323467702,1714028845278,-500.0,0.00012899,2]
[323467703,1714028845298,-448.11307762,0.00012899,2]
[323467704,1714028845318,-520.48392221,0.00012899,2]
[323467705,1714028845337,-293.10873029,0.00012899,2]
[323467706,1714028853108,-206.89126971,0.00012899,2]
[323467707,1714028853130,-500.0,0.00012899,2]
[323467708,1714028853152,-500.0,0.00012899,2]
[323467709,1714028853173,-485.28690856,0.00012899,2]
[323467710,1714028853197,-491.3398707,0.00012899,2]
[323467711,1714028853217,-500.0,0.00012899,2]
[323467712,1714028853240,-500.0,0.00012899,2]
[323467713,1714028853260,-500.0,0.00012899,2]
[323467714,1714028853281,-500.0,0.00012899,2]
[323467715,1714028853302,-500.0,0.00012899,2]
[323467716,1714028853322,-598.48082523,0.00012899,2]
[323467717,1714028853342,-503.40439849,0.00012899,2]
[323467718,1714028853363,-500.0,0.00012899,2]
[323467719,1714028853385,-193.02552242,0.00012899,2]
[323467720,1714028853406,-521.42656485,0.00012899,2]
[323467721,1714028853429,-500.0,0.00012899,2]
[323467722,1714028853450,-500.0,0.00012899,2]
[323467723,1714028853469,-500.0,0.00012899,2]
[323467724,1714028853490,-505.88173815,0.00012899,2]
[323467725,1714028853513,-500.0,0.00012899,2]
[323467726,1714028853535,-235.52482245,0.00012899,2]
[323467727,1714028853557,-500.0,0.00012899,2]
[323467728,1714028853579,-402.57162114,0.00012899,2]
[323467729,1714028853599,-500.0,0.00012899,2]
[323467730,1714028853619,-500.0,0.00012899,2]
[323467731,1714028853639,-500.0,0.00012899,2]
[323467732,1714028853658,-500.0,0.00012899,2]
[323467733,1714028853678,-500.0,0.00012899,2]
[323467734,1714028853697,-546.23852867,0.00012899,2]
[323467735,1714028853717,-500.0,0.00012899,2]
[323467736,1714028853737,-630.20856928,0.00012899,2]
[323467737,1714028853757,-500.0,0.00012899,2]
[323467738,1714028853777,-505.29447977,0.00012899,2]
[323467739,1714028853798,-500.0,0.00012899,2]
[323467740,1714028853818,-500.0,0.00012899,2]
[323467741,1714028853837,-197.92748083,0.00012899,2]
[323467742,1714028853857,-500.0,0.00012899,2]
[323467743,1714028853877,-500.0,0.00012899,2]
[323467744,1714028853897,-500.0,0.00012899,2]
[323467745,1714028853918,-603.46,0.00012899,2]
[323467746,1714028853938,-207.313917,0.00012899,2]
[323467747,1714028853959,-207.313917,0.00012899,2]
[323467748,1714028853978,-207.313917,0.00012899,2]
[323467749,1714028853999,-207.313917,0.00012899,2]
[323467750,1714028854020,-500.0,0.00012899,2]
[323467751,1714028854040,-625.47163768,0.00012899,2]
[323467752,1714028854059,-288.55283307,0.00012899,2]
[323467753,1714028854079,-522.41403953,0.00012899,2]
[323467754,1714028854098,-207.313917,0.00012899,2]
[323467755,1714028854118,-500.0,0.00012899,2]
[323467756,1714028854138,-207.313917,0.00012899,2]
[323467757,1714028854158,-207.313917,0.00012899,2]
[323467758,1714028854179,-518.26789817,0.00012899,2]
[323467759,1714028854198,-207.313917,0.00012899,2]
[323467760,1714028854217,-500.0,0.00012899,2]
[323467761,1714028854237,-533.5030653,0.00012899,2]
[323467762,1714028854257,-500.0,0.00012899,2]
[323467763,1714028854276,-558.57,0.00012899,2]
[323467764,1714028854296,-521.25252691,0.00012899,2]
[323467765,1714028854315,-507.77792814,0.00012899,2]
[323467766,1714028854335,-500.0,0.00012899,2]
[323467767,1714028854354,-500.0,0.00012899,2]
[323467768,1714028854374,-500.0,0.00012899,2]
[323467769,1714028854393,-500.0,0.00012899,2]
[323467770,1714028854412,-522.47012889,0.00012899,2]
[323467771,1714028854431,-500.0,0.00012899,2]
[323467772,1714028854451,-503.81185875,0.00012899,2]
[323467773,1714028854471,-507.55782123,0.00012899,2]
[323467774,1714028854490,-500.0,0.00012899,2]
[323467775,1714028854509,-570.68601603,0.00012899,2]
[323467776,1714028854528,-500.0,0.00012899,2]
[323467777,1714028854547,-501.48568207,0.00012899,2]
[323467778,1714028854566,-500.0,0.00012899,2]
[323467779,1714028854585,-500.0,0.00012899,2]
[323467780,1714028854605,-500.0,0.00012899,2]
[323467781,1714028854624,-500.0,0.00012899,2]
[323467782,1714028854644,-500.0,0.00012899,2]
[323467783,1714028854665,-500.0,0.00012899,2]
[323467784,1714028854685,-500.0,0.00012899,2]
[323467785,1714028854705,-500.0,0.00012899,2]
[323467786,1714028854726,-500.0,0.00012899,2]
[323467787,1714028854747,-500.0,0.00012899,2]
[323467788,1714028854766,-233.04115154,0.00012899,2]
[323467789,1714028854974,-500.0,0.00012899,2]
[323467790,1714028854995,-500.0,0.00012899,2]
[323467791,1714028855017,-500.0,0.00012899,2]
[323467792,1714028855038,-500.0,0.00012899,2]
[323467793,1714028855059,-500.0,0.00012899,2]
[323467794,1714028855080,-511.36,0.00012899,2]
[323467795,1714028855100,-500.0,0.00012899,2]
[323467796,1714028855121,-508.8550607,0.00012899,2]
[323467797,1714028855141,-587.78,0.00012899,2]
[323467798,1714028855162,-500.0,0.00012899,2]
[323467799,1714028855183,-150.0,0.00012899,2]
[323467800,1714028855203,-503.24,0.00012899,2]
[323467801,1714028855224,-500.0,0.00012899,2]
[323467802,1714028855246,-500.0,0.00012899,2]
[323467803,1714028855266,-500.0,0.00012899,2]
[323467804,1714028855287,-500.0,0.00012899,2]
[323467805,1714028855308,-500.0,0.00012899,2]
[323467806,1714028855329,-500.0,0.00012899,2]
[323467807,1714028855349,-500.0,0.00012899,2]
[323467808,1714028855369,-500.0,0.00012899,2]
[323467809,1714028855389,-500.0,0.00012899,2]
[323467810,1714028855409,-500.0,0.00012899,2]
[323467811,1714028855430,-500.0,0.00012899,2]
[323467812,1714028855450,-500.0,0.00012899,2]
[323467813,1714028855470,-500.0,0.00012899,2]
[323467814,1714028856420,-500.0,0.00012899,2]
[323467815,1714028856450,-500.0,0.00012899,2]
[323467816,1714028856475,-500.0,0.00012899,2]
[323467817,1714028856974,-500.0,0.00012899,2]
[323467818,1714028856997,-500.0,0.00012899,2]
[323467819,1714028857019,-500.0,0.00012899,2]
[323467820,1714028857042,-500.0,0.00012899,2]
[323467821,1714028857063,-500.0,0.00012899,2]
[323467822,1714028857084,-1596.12,0.00012899,2]
[323467823,1714028857104,-500.0,0.00012899,2]
[323467824,1714028857124,-500.0,0.00012899,2]
[323467825,1714028857147,-506.51608587,0.00012899,2]
[323467826,1714028857170,-506.21330859,0.00012899,2]
[323467827,1714028857191,-302.31805575,0.00012899,2]
[323467828,1714028857214,-500.0,0.00012899,2]
[323467829,1714028857235,-500.0,0.00012899,2]
[323467830,1714028857259,-500.0,0.00012899,2]
[323467831,1714028857281,-500.0,0.00012899,2]
[323467832,1714028857303,-515.26461601,0.00012899,2]
[323467833,1714028857324,-500.0,0.00012899,2]
[323467834,1714028857347,-500.0,0.00012899,2]
[323467835,1714028857371,-500.0,0.00012899,2]
[323467836,1714028857392,-500.0,0.00012899,2]
[323467837,1714028857412,-500.0,0.00012899,2]
[323467838,1714028857433,-500.0,0.00012899,2]
[323467839,1714028857453,-505.18473854,0.00012899,2]
[323467840,1714028857474,-503.01669685,0.00012899,2]
[323467841,1714028857495,-500.0,0.00012899,2]
[323467842,1714028857516,-509.24918988,0.00012899,2]
[323467843,1714028857537,-500.0,0.00012899,2]
[323467844,1714028857558,-500.0,0.00012899,2]
[323467845,1714028857579,-500.0,0.00012899,2]
[323467846,1714028857599,-500.0,0.00012899,2]
[323467847,1714028857619,-500.0,0.00012899,2]
[323467848,1714028857639,-500.0,0.00012899,2]
[323467849,1714028857660,-500.0,0.00012899,2]
[323467850,1714028857683,-500.0,0.00012899,2]
[323467851,1714028857703,-537.97,0.00012899,2]
[323467852,1714028857724,-500.0,0.00012899,2]